[Event "*** Titled Tuesday Blitz"]
[Site "Chess.com"]
[Date "2020.05.26"]
[Round "5"]
[White "gmelviro"]
[Black "PIwan"]
[Result "1/2-1/2"]
[WhiteElo "2080"]
[BlackElo "2502"]
[TimeControl "180+1"]
[EndTime "10:57:41 PDT"]
[Termination "Game drawn - insufficient material"]

1. c4 {[%clk 0:03:00.9]} 1... c6 {[%clk 0:02:58.5]} 2. g3 {[%clk 0:02:59.6]}
2... d5 {[%clk 0:02:58.9]} 3. Bg2 {[%clk 0:02:59.8]} 3... Nf6 {[%clk 0:02:58.8]}
4. Nf3 {[%clk 0:02:59.7]} 4... dxc4 {[%clk 0:02:58.7]} 5. O-O {[%clk 0:02:58.8]}
5... b5 {[%clk 0:02:51.4]} 6. a4 {[%clk 0:02:58.4]} 6... Bb7 {[%clk 0:02:51.3]}
7. b3 {[%clk 0:02:56.3]} 7... cxb3 {[%clk 0:02:42]} 8. Qxb3 {[%clk 0:02:55.5]}
8... a6 {[%clk 0:02:35.5]} 9. axb5 {[%clk 0:02:46]} 9... cxb5 {[%clk 0:02:23.5]}
10. Nc3 {[%clk 0:02:36.7]} 10... e6 {[%clk 0:02:21.8]} 11. Ba3 {[%clk
0:02:31.8]} 11... Bxa3 {[%clk 0:02:18.5]} 12. Qxa3 {[%clk 0:02:31.1]} 12... Qe7
{[%clk 0:02:17.7]} 13. Qxe7+ {[%clk 0:02:07.5]} 13... Kxe7 {[%clk 0:02:18.6]}
14. Ne5 {[%clk 0:02:07.9]} 14... Bxg2 {[%clk 0:02:12.1]} 15. Kxg2 {[%clk
0:02:08.8]} 15... Nbd7 {[%clk 0:02:06.4]} 16. Nc6+ {[%clk 0:02:05.3]} 16... Kd6
{[%clk 0:02:05.4]} 17. Na5 {[%clk 0:01:51]} 17... Rhc8 {[%clk 0:02:03.1]} 18.
Ra2 {[%clk 0:01:46.8]} 18... Kc7 {[%clk 0:01:40.7]} 19. Rfa1 {[%clk 0:01:39.8]}
19... Kb6 {[%clk 0:01:39.9]} 20. Rb1 {[%clk 0:01:11.9]} 20... Nc5 {[%clk
0:01:35.3]} 21. Nc4+ {[%clk 0:01:09.3]} 21... Kc7 {[%clk 0:01:33.9]} 22. Ne5
{[%clk 0:01:08.7]} 22... Rf8 {[%clk 0:01:22.3]} 23. d4 {[%clk 0:00:59.8]} 23...
Ncd7 {[%clk 0:01:18.9]} 24. Nd3 {[%clk 0:00:57.8]} 24... Kb7 {[%clk 0:01:02.3]}
25. Na4 {[%clk 0:00:52.5]} 25... Ra7 {[%clk 0:00:31]} 26. Nac5+ {[%clk
0:00:50.4]} 26... Nxc5 {[%clk 0:00:31.5]} 27. Nxc5+ {[%clk 0:00:49.4]} 27... Kb6
{[%clk 0:00:32]} 28. Na4+ {[%clk 0:00:34.8]} 28... Kc7 {[%clk 0:00:27.9]} 29.
Rc2+ {[%clk 0:00:33.4]} 29... Kd6 {[%clk 0:00:21.6]} 30. Nc5 {[%clk 0:00:32.1]}
30... Nd5 {[%clk 0:00:18]} 31. e4 {[%clk 0:00:31.1]} 31... Nb4 {[%clk
0:00:16.5]} 32. Rxb4 {[%clk 0:00:30]} 32... Rc8 {[%clk 0:00:14.5]} 33. Nb7+
{[%clk 0:00:18.9]} 33... Kd7 {[%clk 0:00:15]} 34. Rxc8 {[%clk 0:00:18.1]} 34...
Kxc8 {[%clk 0:00:15.9]} 35. Na5 {[%clk 0:00:18]} 35... Kc7 {[%clk 0:00:15.8]}
36. Kf3 {[%clk 0:00:17.7]} 36... Kb6 {[%clk 0:00:16]} 37. Nb3 {[%clk 0:00:17.7]}
37... a5 {[%clk 0:00:15.9]} 38. Nxa5 {[%clk 0:00:17.4]} 38... Rxa5 {[%clk
0:00:15.9]} 39. Rb3 {[%clk 0:00:16.7]} 39... Ra1 {[%clk 0:00:14.7]} 40. Ke3
{[%clk 0:00:16.5]} 40... Ka5 {[%clk 0:00:14.6]} 41. h4 {[%clk 0:00:16.5]} 41...
Ka4 {[%clk 0:00:14.4]} 42. Rb2 {[%clk 0:00:16.6]} 42... Ra3+ {[%clk 0:00:13.2]}
43. Ke2 {[%clk 0:00:16]} 43... b4 {[%clk 0:00:13.2]} 44. d5 {[%clk 0:00:16.3]}
44... exd5 {[%clk 0:00:11.4]} 45. exd5 {[%clk 0:00:17.2]} 45... Kb5 {[%clk
0:00:11.6]} 46. d6 {[%clk 0:00:17.2]} 46... Ra7 {[%clk 0:00:11.6]} 47. Rd2
{[%clk 0:00:16]} 47... Rd7 {[%clk 0:00:11.7]} 48. Kd1 {[%clk 0:00:15.9]} 48...
Kc5 {[%clk 0:00:11.6]} 49. Kc2 {[%clk 0:00:16.1]} 49... Rxd6 {[%clk 0:00:11.6]}
50. Re2 {[%clk 0:00:15]} 50... Ra6 {[%clk 0:00:10.3]} 51. Re5+ {[%clk 0:00:14]}
51... Kd4 {[%clk 0:00:10.5]} 52. Rf5 {[%clk 0:00:14.1]} 52... f6 {[%clk
0:00:10]} 53. Kb3 {[%clk 0:00:13.7]} 53... Rb6 {[%clk 0:00:08.5]} 54. Rf4+
{[%clk 0:00:13.7]} 54... Ke5 {[%clk 0:00:08.1]} 55. Rc4 {[%clk 0:00:10.5]} 55...
g5 {[%clk 0:00:07.6]} 56. hxg5 {[%clk 0:00:10.1]} 56... fxg5 {[%clk 0:00:08.5]}
57. f4+ {[%clk 0:00:10.2]} 57... gxf4 {[%clk 0:00:06.3]} 58. Rxf4 {[%clk
0:00:11.1]} 58... h5 {[%clk 0:00:05.7]} 59. Rh4 {[%clk 0:00:11.1]} 59... Kf5
{[%clk 0:00:04.3]} 60. Rxh5+ {[%clk 0:00:11.1]} 60... Kg4 {[%clk 0:00:04.9]} 61.
Rh4+ {[%clk 0:00:11.2]} 61... Kxg3 {[%clk 0:00:05.5]} 62. Rxb4 {[%clk
0:00:11.6]} 62... Rxb4+ {[%clk 0:00:06.4]} 63. Kxb4 {[%clk 0:00:11.9]} 1/2-1/2

[Event "*** Titled Tuesday Blitz"]
[Site "Chess.com"]
[Date "2020.05.26"]
[Round "5"]
[White "TargetA"]
[Black "Roaccutane"]
[Result "1-0"]
[WhiteElo "2571"]
[BlackElo "2713"]
[TimeControl "180+1"]
[EndTime "10:57:43 PDT"]
[Termination "TargetA won by checkmate"]

1. e4 {[%clk 0:03:00.9]} 1... d6 {[%clk 0:02:58.2]} 2. d4 {[%clk 0:03:01]} 2...
Nf6 {[%clk 0:02:58.5]} 3. Nc3 {[%clk 0:03:01.1]} 3... g6 {[%clk 0:02:58.8]} 4.
f4 {[%clk 0:03:00.5]} 4... Bg7 {[%clk 0:02:58.3]} 5. Nf3 {[%clk 0:03:00.5]} 5...
O-O {[%clk 0:02:58.5]} 6. e5 {[%clk 0:03:00.2]} 6... Nfd7 {[%clk 0:02:58.5]} 7.
h4 {[%clk 0:02:59.9]} 7... c5 {[%clk 0:02:58.5]} 8. h5 {[%clk 0:03:00.1]} 8...
cxd4 {[%clk 0:02:58.8]} 9. Qxd4 {[%clk 0:03:00.9]} 9... dxe5 {[%clk 0:02:48.5]}
10. Qf2 {[%clk 0:02:47.9]} 10... e4 {[%clk 0:02:33.8]} 11. Ng5 {[%clk
0:02:40.7]} 11... Nf6 {[%clk 0:01:23.6]} 12. hxg6 {[%clk 0:02:34.1]} 12... hxg6
{[%clk 0:01:23.8]} 13. Qh4 {[%clk 0:02:21.6]} 13... Re8 {[%clk 0:01:18.7]} 14.
Bc4 {[%clk 0:02:16.8]} 14... e6 {[%clk 0:01:16.3]} 15. Ncxe4 {[%clk 0:02:09.6]}
15... Nc6 {[%clk 0:01:10.4]} 16. Be3 {[%clk 0:02:04.9]} 16... b6 {[%clk
0:00:48.8]} 17. Rd1 {[%clk 0:01:56.6]} 17... Qe7 {[%clk 0:00:48.5]} 18. c3
{[%clk 0:01:33.3]} 18... Bb7 {[%clk 0:00:41.8]} 19. Nxf6+ {[%clk 0:01:21.5]}
19... Qxf6 {[%clk 0:00:41.6]} 20. Qh7+ {[%clk 0:01:21.4]} 20... Kf8 {[%clk
0:00:41.8]} 21. Rd7 {[%clk 0:01:21.7]} 21... Re7 {[%clk 0:00:39.8]} 22. Ne4
{[%clk 0:00:49.6]} 22... Rxd7 {[%clk 0:00:38.4]} 23. Nxf6 {[%clk 0:00:47.9]}
23... Bxf6 {[%clk 0:00:39.3]} 24. Qh6+ {[%clk 0:00:43.5]} 24... Ke7 {[%clk
0:00:39]} 25. g4 {[%clk 0:00:38.4]} 25... Rh8 {[%clk 0:00:31.8]} 26. Qxh8 {[%clk
0:00:33.4]} 26... Bxh8 {[%clk 0:00:32.7]} 27. Rxh8 {[%clk 0:00:33.7]} 27... Rd8
{[%clk 0:00:31.4]} 28. Rh7 {[%clk 0:00:32.4]} 28... Na5 {[%clk 0:00:26.9]} 29.
Be2 {[%clk 0:00:30.5]} 29... Be4 {[%clk 0:00:23.7]} 30. f5 {[%clk 0:00:30.2]}
30... Kd6 {[%clk 0:00:15.5]} 31. Rxf7 {[%clk 0:00:25.8]} 31... gxf5 {[%clk
0:00:14.4]} 32. gxf5 {[%clk 0:00:23]} 32... Bxf5 {[%clk 0:00:15.3]} 33. Rxa7
{[%clk 0:00:22.6]} 33... Kc6 {[%clk 0:00:13.3]} 34. b4 {[%clk 0:00:19.5]} 34...
Rh8 {[%clk 0:00:04.8]} 35. bxa5 {[%clk 0:00:18.9]} 35... bxa5 {[%clk 0:00:04.2]}
36. Rxa5 {[%clk 0:00:17.7]} 36... Rh2 {[%clk 0:00:05.1]} 37. Rc5+ {[%clk
0:00:16.9]} 37... Kb7 {[%clk 0:00:06]} 38. a4 {[%clk 0:00:16.2]} 38... Be4
{[%clk 0:00:04.1]} 39. Re5 {[%clk 0:00:15.6]} 39... Bd5 {[%clk 0:00:03.9]} 40.
c4 {[%clk 0:00:15.5]} 40... Bc6 {[%clk 0:00:04.4]} 41. Rxe6 {[%clk 0:00:14.9]}
41... Bxa4 {[%clk 0:00:04.7]} 42. c5 {[%clk 0:00:14.8]} 42... Kc7 {[%clk
0:00:04.5]} 43. Bf3 {[%clk 0:00:14.5]} 43... Kd7 {[%clk 0:00:04.9]} 44. Rd6+
{[%clk 0:00:14.7]} 44... Ke7 {[%clk 0:00:05]} 45. Bg5+ {[%clk 0:00:14.6]} 45...
Kf7 {[%clk 0:00:04.7]} 46. c6 {[%clk 0:00:15]} 46... Rc2 {[%clk 0:00:04.2]} 47.
Bf4 {[%clk 0:00:13.8]} 47... Bb5 {[%clk 0:00:03.5]} 48. Rd2 {[%clk 0:00:13]}
48... Rc4 {[%clk 0:00:04.4]} 49. c7 {[%clk 0:00:12.5]} 49... Rc3 {[%clk
0:00:03.7]} 50. Bg4 {[%clk 0:00:11.8]} 50... Ba6 {[%clk 0:00:04]} 51. Ra2 {[%clk
0:00:11.8]} 51... Bb7 {[%clk 0:00:03.5]} 52. Rb2 {[%clk 0:00:11.9]} 52... Bc8
{[%clk 0:00:03.4]} 53. Bxc8 {[%clk 0:00:11.4]} 53... Rc4 {[%clk 0:00:04]} 54.
Bh3 {[%clk 0:00:10.9]} 54... Re4+ {[%clk 0:00:04.9]} 55. Kd2 {[%clk 0:00:11]}
55... Rxf4 {[%clk 0:00:05.8]} 56. c8=Q {[%clk 0:00:10.7]} 56... Rf2+ {[%clk
0:00:06.7]} 57. Kc1 {[%clk 0:00:10.4]} 57... Kg7 {[%clk 0:00:07.6]} 58. Rxf2
{[%clk 0:00:09.7]} 58... Kh6 {[%clk 0:00:07.8]} 59. Qg4 {[%clk 0:00:10.1]} 59...
Kh7 {[%clk 0:00:07.5]} 60. Rh2 {[%clk 0:00:10.1]} 60... Kh8 {[%clk 0:00:07.4]}
61. Bg2# {[%clk 0:00:10.3]} 1-0

[Event "*** Titled Tuesday Blitz"]
[Site "Chess.com"]
[Date "2020.05.26"]
[Round "5"]
[White "CyberdelChess"]
[Black "Mizner"]
[Result "1-0"]
[WhiteElo "2296"]
[BlackElo "2504"]
[TimeControl "180+1"]
[EndTime "10:57:43 PDT"]
[Termination "CyberdelChess won on time"]

1. e4 {[%clk 0:03:00.9]} 1... e6 {[%clk 0:03:00]} 2. d4 {[%clk 0:03:00.6]} 2...
d5 {[%clk 0:03:00.4]} 3. exd5 {[%clk 0:03:01.2]} 3... exd5 {[%clk 0:03:00.2]} 4.
Bd3 {[%clk 0:03:01.3]} 4... Bd6 {[%clk 0:02:56.7]} 5. c4 {[%clk 0:02:50.8]} 5...
dxc4 {[%clk 0:02:49.4]} 6. Bxc4 {[%clk 0:02:50.8]} 6... Nf6 {[%clk 0:02:49.6]}
7. h3 {[%clk 0:02:47.8]} 7... O-O {[%clk 0:02:49.1]} 8. Nf3 {[%clk 0:02:46.7]}
8... Re8+ {[%clk 0:02:49.3]} 9. Be3 {[%clk 0:02:46.2]} 9... Nbd7 {[%clk
0:02:41.1]} 10. O-O {[%clk 0:02:44.9]} 10... Nb6 {[%clk 0:02:40.9]} 11. Bb3
{[%clk 0:02:42]} 11... Nbd5 {[%clk 0:02:39.9]} 12. Re1 {[%clk 0:02:39.6]} 12...
Bf5 {[%clk 0:02:34.2]} 13. Nc3 {[%clk 0:02:36.9]} 13... Nxe3 {[%clk 0:02:23.1]}
14. fxe3 {[%clk 0:02:31.7]} 14... Ne4 {[%clk 0:02:23.3]} 15. Bc2 {[%clk
0:01:48.9]} 15... Qe7 {[%clk 0:01:59.5]} 16. a3 {[%clk 0:01:44.7]} 16... h6
{[%clk 0:01:58.1]} 17. Nd5 {[%clk 0:01:16]} 17... Qe6 {[%clk 0:01:49.7]} 18. Bb3
{[%clk 0:01:15.4]} 18... Qg6 {[%clk 0:01:42.3]} 19. Nh4 {[%clk 0:01:10]} 19...
Qg3 {[%clk 0:01:10]} 20. Nxf5 {[%clk 0:00:51.4]} 20... Qf2+ {[%clk 0:01:00.3]}
21. Kh1 {[%clk 0:00:50.9]} 21... Qxf5 {[%clk 0:01:01.2]} 22. Qf3 {[%clk
0:00:28.5]} 22... Qg6 {[%clk 0:00:52]} 23. Nc3 {[%clk 0:00:20.6]} 23... Nd2
{[%clk 0:00:45.4]} 24. Qd1 {[%clk 0:00:19.5]} 24... Nxb3 {[%clk 0:00:42.6]} 25.
Qxb3 {[%clk 0:00:20.4]} 25... Bg3 {[%clk 0:00:34.8]} 26. Re2 {[%clk 0:00:20.2]}
26... Qd3 {[%clk 0:00:34.6]} 27. Qxb7 {[%clk 0:00:18.3]} 27... Rab8 {[%clk
0:00:34.9]} 28. Qf3 {[%clk 0:00:17.7]} 28... Bd6 {[%clk 0:00:29.8]} 29. Rf1
{[%clk 0:00:18]} 29... Re7 {[%clk 0:00:26.9]} 30. Nd5 {[%clk 0:00:17.6]} 30...
Rd7 {[%clk 0:00:27.1]} 31. Nf4 {[%clk 0:00:17]} 31... Bxf4 {[%clk 0:00:22.6]}
32. exf4 {[%clk 0:00:17.5]} 32... Rxd4 {[%clk 0:00:19.8]} 33. Qxd3 {[%clk
0:00:16.9]} 33... Rxd3 {[%clk 0:00:19.6]} 34. Rc1 {[%clk 0:00:16.6]} 34... Rd4
{[%clk 0:00:15.1]} 35. Rxc7 {[%clk 0:00:14.7]} 35... Rxf4 {[%clk 0:00:15]} 36.
Rxa7 {[%clk 0:00:14.9]} 36... h5 {[%clk 0:00:08.6]} 37. Rae7 {[%clk 0:00:10.6]}
37... h4 {[%clk 0:00:08.1]} 38. Re8+ {[%clk 0:00:10.5]} 38... Rxe8 {[%clk
0:00:06.6]} 39. Rxe8+ {[%clk 0:00:11.4]} 39... Kh7 {[%clk 0:00:07.5]} 40. Rb8
{[%clk 0:00:10.8]} 40... Rf1+ {[%clk 0:00:07.2]} 41. Kh2 {[%clk 0:00:10.6]}
41... g5 {[%clk 0:00:07.8]} 42. Rb6 {[%clk 0:00:09.6]} 42... f5 {[%clk 0:00:07]}
43. a4 {[%clk 0:00:08.8]} 43... g4 {[%clk 0:00:07.1]} 44. hxg4 {[%clk
0:00:08.2]} 44... fxg4 {[%clk 0:00:07.9]} 45. a5 {[%clk 0:00:06.6]} 45... Rf2
{[%clk 0:00:07.2]} 46. Kg1 {[%clk 0:00:07]} 46... Rc2 {[%clk 0:00:06.6]} 47. a6
{[%clk 0:00:07.2]} 47... g3 {[%clk 0:00:06]} 48. Kf1 {[%clk 0:00:07.6]} 48...
Rf2+ {[%clk 0:00:05.9]} 49. Kg1 {[%clk 0:00:07.9]} 49... Rc2 {[%clk 0:00:06]}
50. Kf1 {[%clk 0:00:08.4]} 50... Rf2+ {[%clk 0:00:06.1]} 51. Ke1 {[%clk
0:00:09]} 51... Rxg2 {[%clk 0:00:06.1]} 52. a7 {[%clk 0:00:09.5]} 52... Rg1+
{[%clk 0:00:05.5]} 53. Ke2 {[%clk 0:00:09.2]} 53... Ra1 {[%clk 0:00:06.4]} 54.
Rb7+ {[%clk 0:00:08.1]} 54... Kg6 {[%clk 0:00:06.3]} 55. Kf3 {[%clk 0:00:08.5]}
55... Kg5 {[%clk 0:00:05.9]} 56. b4 {[%clk 0:00:07.4]} 56... Ra3+ {[%clk
0:00:05.6]} 57. Ke4 {[%clk 0:00:03.7]} 57... h3 {[%clk 0:00:04.3]} 58. b5 {[%clk
0:00:03]} 58... h2 {[%clk 0:00:03.9]} 59. Rh7 {[%clk 0:00:03]} 59... Rxa7 {[%clk
0:00:03.1]} 60. Rh8 {[%clk 0:00:02.5]} 60... Re7+ {[%clk 0:00:02]} 61. Kd4
{[%clk 0:00:02.6]} 61... Kg4 {[%clk 0:00:01.7]} 62. b6 {[%clk 0:00:01.8]} 62...
Kf3 {[%clk 0:00:01.8]} 63. Kc4 {[%clk 0:00:01.3]} 1-0

[Event "*** Titled Tuesday Blitz"]
[Site "Chess.com"]
[Date "2020.05.26"]
[Round "5"]
[White "iLuusions"]
[Black "SiddharthGMJagadeesh"]
[Result "1-0"]
[WhiteElo "2581"]
[BlackElo "2411"]
[TimeControl "180+1"]
[EndTime "10:57:44 PDT"]
[Termination "iLuusions won by checkmate"]

1. d4 {[%clk 0:03:00.9]} 1... d5 {[%clk 0:02:59.3]} 2. c4 {[%clk 0:02:59.7]}
2... e6 {[%clk 0:02:59.4]} 3. Nf3 {[%clk 0:02:59.5]} 3... Nf6 {[%clk 0:02:59.6]}
4. g3 {[%clk 0:02:57.9]} 4... Be7 {[%clk 0:02:59.1]} 5. Bg2 {[%clk 0:02:56.8]}
5... O-O {[%clk 0:02:59.1]} 6. O-O {[%clk 0:02:57.7]} 6... dxc4 {[%clk
0:02:59.1]} 7. Qc2 {[%clk 0:02:58.6]} 7... a6 {[%clk 0:02:58.8]} 8. a4 {[%clk
0:02:58.8]} 8... Bd7 {[%clk 0:02:58.7]} 9. Qxc4 {[%clk 0:02:59.1]} 9... Bc6
{[%clk 0:02:59]} 10. Bf4 {[%clk 0:02:59.7]} 10... a5 {[%clk 0:02:59]} 11. Nc3
{[%clk 0:02:58.8]} 11... Bxf3 {[%clk 0:02:54.3]} 12. Bxf3 {[%clk 0:02:57]} 12...
c6 {[%clk 0:02:54.8]} 13. e4 {[%clk 0:02:52.5]} 13... Ra6 {[%clk 0:02:52.6]} 14.
Rfd1 {[%clk 0:02:33.1]} 14... Nbd7 {[%clk 0:02:32.4]} 15. Be3 {[%clk 0:01:51]}
15... Bb4 {[%clk 0:02:19.5]} 16. Rac1 {[%clk 0:01:45.5]} 16... Qe7 {[%clk
0:02:10.7]} 17. h3 {[%clk 0:01:05.2]} 17... Rd8 {[%clk 0:02:09.8]} 18. Bg2
{[%clk 0:01:01.5]} 18... Raa8 {[%clk 0:02:01.5]} 19. Na2 {[%clk 0:00:41.2]}
19... h6 {[%clk 0:01:36.9]} 20. b3 {[%clk 0:00:25.2]} 20... Ba3 {[%clk
0:01:33.7]} 21. Rc2 {[%clk 0:00:24.3]} 21... Rac8 {[%clk 0:01:30.1]} 22. Qe2
{[%clk 0:00:24.2]} 22... e5 {[%clk 0:01:02.4]} 23. dxe5 {[%clk 0:00:21]} 23...
Qxe5 {[%clk 0:00:34.8]} 24. f4 {[%clk 0:00:18.3]} 24... Qe6 {[%clk 0:00:34.8]}
25. e5 {[%clk 0:00:16.6]} 25... Nd5 {[%clk 0:00:34.7]} 26. Bf2 {[%clk 0:00:10]}
26... Nb4 {[%clk 0:00:28.2]} 27. Nxb4 {[%clk 0:00:09.3]} 27... Bxb4 {[%clk
0:00:29.1]} 28. g4 {[%clk 0:00:08.9]} 28... Qxb3 {[%clk 0:00:28.1]} 29. f5
{[%clk 0:00:08.4]} 29... Nxe5 {[%clk 0:00:25]} 30. Rxd8+ {[%clk 0:00:06.2]}
30... Rxd8 {[%clk 0:00:25.9]} 31. Rb2 {[%clk 0:00:03.2]} 31... Qd1+ {[%clk
0:00:24.1]} 32. Kh2 {[%clk 0:00:01.7]} 32... Qxe2 {[%clk 0:00:21.8]} 33. Rxe2
{[%clk 0:00:02.6]} 33... Nd3 {[%clk 0:00:22.5]} 34. Bh4 {[%clk 0:00:01.6]} 34...
f6 {[%clk 0:00:21]} 35. Bg3 {[%clk 0:00:01.8]} 35... Bd6 {[%clk 0:00:14.7]} 36.
Rd2 {[%clk 0:00:02]} 36... Bxg3+ {[%clk 0:00:10.5]} 37. Kxg3 {[%clk 0:00:02.9]}
37... Rd7 {[%clk 0:00:09.5]} 38. Be4 {[%clk 0:00:02.8]} 38... Ne5 {[%clk
0:00:09.4]} 39. Rb2 {[%clk 0:00:03.7]} 39... Kf7 {[%clk 0:00:09.1]} 40. Rb6
{[%clk 0:00:03.4]} 40... Ke7 {[%clk 0:00:08.8]} 41. Kf4 {[%clk 0:00:03.9]} 41...
Kd6 {[%clk 0:00:09]} 42. Rb3 {[%clk 0:00:04]} 42... Kc7 {[%clk 0:00:09.2]} 43.
h4 {[%clk 0:00:04.5]} 43... Rd4 {[%clk 0:00:09.2]} 44. g5 {[%clk 0:00:05.1]}
44... hxg5+ {[%clk 0:00:08.8]} 45. hxg5 {[%clk 0:00:06]} 45... Rxa4 {[%clk
0:00:09.4]} 46. Rh3 {[%clk 0:00:06.3]} 46... Nf7 {[%clk 0:00:07.1]} 47. gxf6
{[%clk 0:00:06.7]} 47... Nd6 {[%clk 0:00:06.8]} 48. fxg7 {[%clk 0:00:06]} 48...
Rxe4+ {[%clk 0:00:06.8]} 49. Kg5 {[%clk 0:00:06.4]} 49... Re1 {[%clk 0:00:04.3]}
50. Rg3 {[%clk 0:00:06.3]} 50... Re8 {[%clk 0:00:03]} 51. Kg6 {[%clk 0:00:06.5]}
51... a4 {[%clk 0:00:02.9]} 52. f6 {[%clk 0:00:07]} 52... b5 {[%clk 0:00:02.4]}
53. Rd3 {[%clk 0:00:06.6]} 53... Rd8 {[%clk 0:00:01.6]} 54. Rxd6 {[%clk
0:00:06.3]} 54... Rxd6 {[%clk 0:00:01.8]} 55. g8=Q {[%clk 0:00:06]} 55... Rd1
{[%clk 0:00:02.5]} 56. Qf7+ {[%clk 0:00:06]} 56... Kb6 {[%clk 0:00:03.1]} 57.
Qe8 {[%clk 0:00:06.1]} 57... Rg1+ {[%clk 0:00:03.5]} 58. Kf5 {[%clk 0:00:06.3]}
58... a3 {[%clk 0:00:03.7]} 59. f7 {[%clk 0:00:06.5]} 59... Rf1+ {[%clk
0:00:03.8]} 60. Kg6 {[%clk 0:00:06.8]} 60... a2 {[%clk 0:00:04.1]} 61. Qb8+
{[%clk 0:00:06.9]} 61... Kc5 {[%clk 0:00:04.2]} 62. f8=Q+ {[%clk 0:00:06.7]}
62... Rxf8 {[%clk 0:00:03.5]} 63. Qxf8+ {[%clk 0:00:07.6]} 63... Kc4 {[%clk
0:00:04.2]} 64. Qa3 {[%clk 0:00:08.4]} 64... b4 {[%clk 0:00:03.1]} 65. Qxa2+
{[%clk 0:00:08.8]} 65... b3 {[%clk 0:00:04]} 66. Qb2 {[%clk 0:00:09.3]} 66... c5
{[%clk 0:00:04.4]} 67. Kg5 {[%clk 0:00:09.7]} 67... Kb4 {[%clk 0:00:04.9]} 68.
Kf4 {[%clk 0:00:09.9]} 68... c4 {[%clk 0:00:05.8]} 69. Ke3 {[%clk 0:00:10.4]}
69... c3 {[%clk 0:00:06.7]} 70. Qb1 {[%clk 0:00:10.8]} 70... b2 {[%clk
0:00:06.5]} 71. Kd3 {[%clk 0:00:10.9]} 71... Kb3 {[%clk 0:00:07.4]} 72. Qc2+
{[%clk 0:00:11.2]} 72... Ka2 {[%clk 0:00:07.8]} 73. Kxc3 {[%clk 0:00:11]} 73...
Ka1 {[%clk 0:00:07.4]} 74. Qxb2# {[%clk 0:00:11.3]} 1-0

[Event "*** Titled Tuesday Blitz"]
[Site "Chess.com"]
[Date "2020.05.26"]
[Round "5"]
[White "Schachmalanders"]
[Black "Grineva_Marianna"]
[Result "1/2-1/2"]
[WhiteElo "2307"]
[BlackElo "2133"]
[TimeControl "180+1"]
[EndTime "10:57:44 PDT"]
[Termination "Game drawn by stalemate"]

1. e4 {[%clk 0:03:00.9]} 1... d6 {[%clk 0:02:59.3]} 2. d4 {[%clk 0:03:00.6]}
2... Nf6 {[%clk 0:02:59.3]} 3. Nc3 {[%clk 0:03:00.4]} 3... g6 {[%clk 0:02:59.5]}
4. Be3 {[%clk 0:02:57.9]} 4... a6 {[%clk 0:02:57.8]} 5. a4 {[%clk 0:02:56.7]}
5... Nc6 {[%clk 0:02:54.8]} 6. h3 {[%clk 0:02:56]} 6... Bg7 {[%clk 0:02:49.6]}
7. Nf3 {[%clk 0:02:55.2]} 7... O-O {[%clk 0:02:48.7]} 8. Bd3 {[%clk 0:02:55.1]}
8... e5 {[%clk 0:02:41.1]} 9. O-O {[%clk 0:02:52.4]} 9... exd4 {[%clk
0:02:39.1]} 10. Nxd4 {[%clk 0:02:51.2]} 10... Bd7 {[%clk 0:02:38.2]} 11. Re1
{[%clk 0:02:49.3]} 11... Re8 {[%clk 0:02:36.7]} 12. Qd2 {[%clk 0:02:49.1]} 12...
Nh5 {[%clk 0:02:20.2]} 13. Bc4 {[%clk 0:02:44.8]} 13... Ne5 {[%clk 0:02:07]} 14.
Bb3 {[%clk 0:02:42.8]} 14... c5 {[%clk 0:01:55.8]} 15. Nde2 {[%clk 0:02:29.8]}
15... Be6 {[%clk 0:01:48.3]} 16. Bxe6 {[%clk 0:02:28.5]} 16... Rxe6 {[%clk
0:01:47.9]} 17. Qd5 {[%clk 0:02:26.6]} 17... Qc7 {[%clk 0:01:39.9]} 18. f4
{[%clk 0:02:13.6]} 18... Nf6 {[%clk 0:01:38.5]} 19. Qb3 {[%clk 0:01:56.5]} 19...
Nc6 {[%clk 0:01:22]} 20. Ng3 {[%clk 0:01:48]} 20... Na5 {[%clk 0:01:18]} 21. Qa2
{[%clk 0:01:41.3]} 21... Rae8 {[%clk 0:01:13.9]} 22. Nd5 {[%clk 0:01:37.1]}
22... Nxd5 {[%clk 0:01:09.9]} 23. Qxd5 {[%clk 0:01:38]} 23... Bxb2 {[%clk
0:01:08.2]} 24. Rab1 {[%clk 0:01:36.4]} 24... Bc3 {[%clk 0:01:08.1]} 25. Red1
{[%clk 0:01:34.9]} 25... Nc6 {[%clk 0:00:56.4]} 26. f5 {[%clk 0:01:31.4]} 26...
R6e7 {[%clk 0:00:32.9]} 27. Qxd6 {[%clk 0:01:27.4]} 27... Qxd6 {[%clk
0:00:28.5]} 28. Rxd6 {[%clk 0:01:28.3]} 28... Be5 {[%clk 0:00:23.9]} 29. Rxc6
{[%clk 0:01:20.3]} 29... bxc6 {[%clk 0:00:20.2]} 30. Nf1 {[%clk 0:01:13.1]}
30... Bd4 {[%clk 0:00:20]} 31. Bxd4 {[%clk 0:01:13.4]} 31... cxd4 {[%clk
0:00:20.9]} 32. fxg6 {[%clk 0:01:11.7]} 32... hxg6 {[%clk 0:00:20.6]} 33. Rb6
{[%clk 0:01:11.5]} 33... Rxe4 {[%clk 0:00:20]} 34. Rxc6 {[%clk 0:01:10.9]} 34...
a5 {[%clk 0:00:19.8]} 35. Ra6 {[%clk 0:01:06.6]} 35... R8e5 {[%clk 0:00:19.8]}
36. Kh2 {[%clk 0:01:04.9]} 36... Re2 {[%clk 0:00:19]} 37. Rc6 {[%clk 0:01:04.9]}
37... Kg7 {[%clk 0:00:18.2]} 38. Ng3 {[%clk 0:01:02.6]} 38... Rf2 {[%clk
0:00:18.1]} 39. Rc4 {[%clk 0:01:00.1]} 39... Rd2 {[%clk 0:00:17.8]} 40. Nf1
{[%clk 0:00:58.6]} 40... Rd1 {[%clk 0:00:17.9]} 41. Ng3 {[%clk 0:00:56.3]} 41...
Ree1 {[%clk 0:00:16.1]} 42. Rc5 {[%clk 0:00:56.3]} 42... Ra1 {[%clk 0:00:15.3]}
43. Rd5 {[%clk 0:00:53.6]} 43... Rxa4 {[%clk 0:00:14.8]} 44. h4 {[%clk
0:00:46.7]} 44... Rc4 {[%clk 0:00:14.5]} 45. Kh3 {[%clk 0:00:45.5]} 45... Rxc2
{[%clk 0:00:14.3]} 46. Rxd4 {[%clk 0:00:45.8]} 46... Rc3 {[%clk 0:00:14.4]} 47.
Kh2 {[%clk 0:00:40.4]} 47... Ree3 {[%clk 0:00:13.4]} 48. Ne4 {[%clk 0:00:39.7]}
48... Rc2 {[%clk 0:00:12.4]} 49. Ng5 {[%clk 0:00:37.4]} 49... Ree2 {[%clk
0:00:11.8]} 50. Rg4 {[%clk 0:00:37.4]} 50... f5 {[%clk 0:00:11.5]} 51. Rg3
{[%clk 0:00:37]} 51... a4 {[%clk 0:00:11.6]} 52. Nf3 {[%clk 0:00:36.7]} 52...
Rf2 {[%clk 0:00:08]} 53. Nd4 {[%clk 0:00:36.3]} 53... Rcd2 {[%clk 0:00:08.1]}
54. Ne6+ {[%clk 0:00:33.6]} 54... Kf6 {[%clk 0:00:07.9]} 55. Nf8 {[%clk
0:00:33]} 55... Rxg2+ {[%clk 0:00:06.9]} 56. Rxg2 {[%clk 0:00:32.5]} 56... Rxg2+
{[%clk 0:00:07.8]} 57. Kxg2 {[%clk 0:00:33.4]} 57... a3 {[%clk 0:00:06.3]} 58.
Nd7+ {[%clk 0:00:33.8]} 58... Ke7 {[%clk 0:00:06.2]} 59. Nc5 {[%clk 0:00:34.2]}
59... a2 {[%clk 0:00:06.8]} 60. Nb3 {[%clk 0:00:34.3]} 60... Kf6 {[%clk
0:00:07.1]} 61. Kf3 {[%clk 0:00:33.5]} 61... g5 {[%clk 0:00:06.3]} 62. hxg5+
{[%clk 0:00:33.1]} 62... Kxg5 {[%clk 0:00:06.5]} 63. Kg3 {[%clk 0:00:32.8]}
63... f4+ {[%clk 0:00:06.9]} 64. Kf3 {[%clk 0:00:32.9]} 64... Kf5 {[%clk
0:00:07.8]} 65. Na1 {[%clk 0:00:31.7]} 65... Ke5 {[%clk 0:00:08.1]} 66. Nc2
{[%clk 0:00:31.6]} 66... Kf5 {[%clk 0:00:06.3]} 67. Na1 {[%clk 0:00:31]} 67...
Ke5 {[%clk 0:00:06.7]} 68. Nc2 {[%clk 0:00:31.1]} 68... Kd5 {[%clk 0:00:07.4]}
69. Kxf4 {[%clk 0:00:30.7]} 69... Kc4 {[%clk 0:00:08]} 70. Ke3 {[%clk
0:00:29.5]} 70... Kc3 {[%clk 0:00:08.6]} 71. Na1 {[%clk 0:00:29.6]} 71... Kb2
{[%clk 0:00:08.9]} 72. Kd2 {[%clk 0:00:30.1]} 72... Kb1 {[%clk 0:00:07.9]} 73.
Nc2 {[%clk 0:00:28.2]} 73... Kb2 {[%clk 0:00:07.4]} 74. Na1 {[%clk 0:00:27]}
74... Kxa1 {[%clk 0:00:07.3]} 75. Kc1 {[%clk 0:00:27]} 1/2-1/2